bitfinex-derivatives/quotes_BTCF0:USTF0_20250928
["timestamp","ask_amount","ask_price","bid_price","bid_amount"]
[1759064930625,0.02298991,109460.0,109450.0,1.2851633]
[1759064932527,0.02298991,109460.0,109450.0,0.9243633]
[1759064932714,0.02298991,109460.0,109450.0,1.6459633]
[1759064934529,0.02298991,109460.0,109450.0,1.6456833]
[1759064936023,0.02298991,109460.0,109450.0,0.8129233]
[1759064936230,0.02298991,109460.0,109450.0,1.6456833]
[1759064940630,0.02298991,109460.0,109450.0,1.6456033]
[1759064948536,0.02298991,109460.0,109450.0,0.8129233]
[1759064948738,0.02298991,109460.0,109450.0,1.6455233]
[1759064951840,0.001,109460.0,109450.0,1.6455233]
[1759064952428,0.09694533,109470.0,109450.0,1.7368466]
[1759064952634,0.14110262,109470.0,109460.0,0.4521149]
[1759064954436,0.14210262,109470.0,109460.0,0.4521149]
[1759064960143,0.14210262,109470.0,109460.0,1.2845949]
[1759064960342,0.14210262,109470.0,109460.0,0.4521149]
[1759064960543,0.14210262,109470.0,109460.0,1.2845549]
[1759064963046,0.14210262,109470.0,109460.0,0.9237549]
[1759064963246,0.14210262,109470.0,109460.0,1.2845549]
[1759064963847,0.14210262,109470.0,109460.0,0.4521149]
[1759064964241,0.14210262,109470.0,109460.0,1.2845149]
[1759064965148,0.14210262,109470.0,109460.0,0.4521149]
[1759064965449,0.14210262,109470.0,109460.0,1.2844749]
[1759064966250,0.14210262,109470.0,109460.0,0.4521149]
[1759064966444,0.14210262,109470.0,109460.0,1.2844749]
[1759064966644,0.14210262,109470.0,109460.0,0.4521149]
[1759064966850,0.14210262,109470.0,109460.0,1.2844749]
[1759064967751,0.14210262,109470.0,109460.0,0.4521149]
[1759064968049,0.14210262,109470.0,109460.0,1.2844349]
[1759064970351,0.14210262,109470.0,109460.0,0.4521149]
[1759064970552,0.14210262,109470.0,109460.0,1.2844349]
[1759065000180,0.14110262,109470.0,109460.0,1.2844349]
[1759065000382,0.14210262,109470.0,109460.0,1.2844349]
[1759065000780,0.12012533,109470.0,109460.0,1.2844349]
[1759065000980,0.14208448,109470.0,109460.0,1.2844349]
[1759065001783,0.14108448,109470.0,109460.0,1.2844349]
[1759065001979,0.14208448,109470.0,109460.0,1.2844349]
[1759065009390,0.14208448,109470.0,109460.0,1.2838349]
[1759065014891,0.14108448,109470.0,109460.0,1.2838349]
[1759065015092,0.14208448,109470.0,109460.0,1.2838349]
[1759065017292,0.14108448,109470.0,109460.0,1.2838349]
[1759065017495,0.14208448,109470.0,109460.0,1.2838349]
[1759065022494,0.11990448,109470.0,109460.0,1.2838349]
[1759065022890,0.11085628,109470.0,109460.0,1.2838349]
[1759065032405,0.13340628,109470.0,109460.0,1.2833949]
[1759065039798,0.11085628,109470.0,109460.0,1.2833949]
[1759065045710,0.11085628,109470.0,109460.0,0.4521149]
[1759065045910,0.11085628,109470.0,109460.0,1.2832349]
[1759065046111,0.11085628,109470.0,109460.0,0.4521149]
[1759065046313,0.10985628,109470.0,109460.0,1.2831949]
[1759065046500,0.11085628,109470.0,109460.0,1.2831949]
[1759065046910,0.11085628,109470.0,109460.0,0.4521149]
[1759065047111,0.11085628,109470.0,109460.0,1.2831949]
[1759065047310,0.10985628,109470.0,109460.0,1.2831949]
[1759065047505,0.11085628,109470.0,109460.0,0.4521149]
[1759065047707,0.13340628,109470.0,109460.0,0.4521149]
[1759065047905,0.13340628,109470.0,109460.0,1.2831549]
[1759065051414,0.11144713,109470.0,109460.0,1.2831549]
[1759065056312,0.08889713,109470.0,109460.0,1.2831549]
[1759065058309,0.08889713,109470.0,109460.0,0.9223549]
[1759065058513,0.08889713,109470.0,109460.0,1.2831549]
[1759065060623,0.11078568,109470.0,109460.0,1.2831549]
[1759065061325,0.13292568,109470.0,109460.0,0.4521149]
[1759065061527,0.13292568,109470.0,109460.0,1.2830349]
[1759065066226,0.11078568,109470.0,109460.0,1.2830349]
[1759065075637,0.11078568,109470.0,109460.0,1.34886553]
[1759065076140,0.1107857,109470.0,109460.0,1.34886553]
[1759065076740,0.08889713,109470.0,109460.0,1.34886553]
[1759065078342,0.11078581,109470.0,109460.0,1.34886553]
[1759065078641,0.08889713,109470.0,109460.0,1.34886553]
[1759065078838,0.11078577,109470.0,109460.0,1.34886553]
[1759065081347,0.11078577,109470.0,109460.0,1.2830349]
[1759065099357,0.11078735,109470.0,109460.0,1.2830349]
[1759065100058,0.11078735,109470.0,109460.0,2.4530349]
[1759065102064,0.11078735,109470.0,109460.0,2.0922349]
[1759065102259,0.11078735,109470.0,109460.0,2.4530349]
[1759065106759,0.09716735,109470.0,109460.0,2.4530349]
[1759065106961,0.03288649,109490.0,109480.0,0.0912972]
[1759065107167,0.06899649,109500.0,109490.0,0.0912889]
[1759065107354,0.03611,109500.0,109490.0,0.0912889]
[1759065107958,0.03611,109500.0,109490.0,0.4520889]
[1759065108155,0.04539087,109500.0,109490.0,1.2988489]
[1759065109856,0.04539087,109500.0,109490.0,1.2987689]
[1759065110168,0.04539087,109500.0,109490.0,0.4520889]
[1759065110570,0.04539087,109500.0,109490.0,1.2989689]
[1759065110759,0.11832607,109500.0,109490.0,1.2989689]
[1759065111068,0.11832607,109500.0,109490.0,0.4520889]
[1759065111271,0.11832607,109500.0,109490.0,1.2989689]
[1759065113166,0.11832607,109500.0,109490.0,0.4520889]
[1759065113468,0.11832607,109500.0,109490.0,1.2986889]
[1759065117371,0.04539087,109500.0,109490.0,1.2986889]
[1759065118873,0.06885583,109500.0,109490.0,1.2986889]
[1759065119461,0.06885583,109500.0,109490.0,1.2980089]
[1759065120171,0.06885583,109500.0,109490.0,1.2976489]
[1759065120372,0.14191515,109500.0,109490.0,1.2976489]
[1759065120668,0.14191515,109500.0,109490.0,1.2975689]
[1759065120872,0.14191515,109500.0,109490.0,1.2975289]
[1759065121271,0.06885583,109500.0,109490.0,1.2975289]
[1759065125175,0.14218535,109500.0,109490.0,1.2975289]
[1759065125474,0.14218535,109500.0,109490.0,0.4520889]
[1759065125978,0.14218535,109500.0,109490.0,1.2970089]
[1759065127879,0.14218535,109500.0,109490.0,0.4520889]
[1759065128174,0.14218535,109500.0,109490.0,1.2965689]
[1759065128776,0.14218535,109500.0,109490.0,0.4520889]
[1759065128976,0.14218535,109500.0,109490.0,1.2963689]
[1759065129677,0.06885583,109500.0,109490.0,0.4520889]
[1759065129878,0.06885583,109500.0,109490.0,1.2962089]
[1759065130078,0.14111922,109500.0,109490.0,1.2962089]
[1759065130272,0.06885583,109500.0,109490.0,1.2962089]
[1759065132476,0.05957496,109500.0,109490.0,1.2962089]
[1759065133583,0.06880968,109500.0,109490.0,1.2962089]
[1759065134178,0.06880968,109500.0,109490.0,1.34540657]
[1759065137580,0.52089028,109500.0,109490.0,0.14048657]
[1759065137778,0.54245334,109500.0,109490.0,0.98344657]
[1759065138783,0.127069,109490.0,109480.0,0.0912916]
[1759065138984,0.15053396,109490.0,109480.0,0.98367344]
[1759065145594,0.15053396,109490.0,109480.0,0.9343716]
[1759065150408,0.1715769,109490.0,109480.0,0.9343716]
[1759065154112,0.5323769,109490.0,109480.0,0.0912916]
[1759065163125,0.127083,109480.0,109470.0,0.0912993]
[1759065163317,0.15054796,109480.0,109470.0,0.0912993]
[1759065171624,0.05924496,109480.0,109470.0,0.0912993]
[1759065172925,0.15054226,109480.0,109470.0,0.0912993]
[1759065200049,0.51134226,109480.0,109470.0,0.0912993]
[1759065211158,0.50993027,109480.0,109470.0,0.0912993]
[1759065240494,0.53161597,109480.0,109470.0,0.0912993]
[1759065241292,0.50993027,109480.0,109470.0,0.0912993]
[1759065255305,0.14913027,109480.0,109470.0,0.0912993]
[1759065280629,0.05783297,109480.0,109470.0,0.0912993]
[1759065287141,0.05811165,109480.0,109470.0,0.0912993]
[1759065291245,0.14940975,109480.0,109470.0,0.0912993]
[1759065291642,0.05811165,109480.0,109470.0,0.0912993]
[1759065293145,0.05811198,109480.0,109470.0,0.0912993]
[1759065297040,0.14941088,109480.0,109470.0,0.0912993]
[1759065301249,0.05811198,109480.0,109470.0,0.0912993]
[1759065301449,0.14941018,109480.0,109470.0,0.0912993]
[1759065319263,0.05811198,109480.0,109470.0,0.0912993]
[1759065319965,0.14941088,109480.0,109470.0,0.0912993]
[1759065339578,0.14939212,109480.0,109470.0,0.0912993]
[1759065355488,0.51019212,109480.0,109470.0,0.0912993]
[1759065371606,0.14939212,109480.0,109470.0,0.0912993]
[1759065371809,0.51019212,109480.0,109470.0,0.0912993]
[1759065372508,0.14939212,109480.0,109470.0,0.0912993]
[1759065376810,0.14939212,109480.0,109470.0,0.4520993]
[1759065382918,0.05809322,109480.0,109470.0,0.4520993]
[1759065383619,0.14939222,109480.0,109470.0,0.4520993]
[1759065384816,0.05809322,109480.0,109470.0,0.4520993]
[1759065385817,0.14939222,109480.0,109470.0,0.4520993]
[1759065390324,0.05809322,109480.0,109470.0,0.4520993]
[1759065390725,0.05809322,109480.0,109470.0,1.2846593]
[1759065391527,0.05809322,109480.0,109470.0,0.4520993]
[1759065391722,0.05809322,109480.0,109470.0,1.2846593]
[1759065408941,0.05809322,109480.0,109470.0,1.2844593]
[1759065412949,0.05809322,109480.0,109470.0,0.4520993]
[1759065413245,0.05809322,109480.0,109470.0,1.2844193]
[1759065418649,0.05809322,109480.0,109470.0,0.4520993]
[1759065418855,0.05809322,109480.0,109470.0,1.2843793]
[1759065419046,0.05809322,109480.0,109470.0,0.4520993]
[1759065419245,0.05809322,109480.0,109470.0,1.2843793]
[1759065420850,0.05809322,109480.0,109470.0,0.9235793]
[1759065421151,0.05809322,109480.0,109470.0,1.2843793]
[1759065422042,0.14939222,109480.0,109470.0,1.2843393]
[1759065422848,0.14939222,109480.0,109470.0,0.4520993]
[1759065423042,0.14939222,109480.0,109470.0,1.2843393]
[1759065424349,0.05809322,109480.0,109470.0,1.2843393]
[1759065429750,0.05809322,109480.0,109470.0,0.4520993]
[1759065430049,0.05809322,109480.0,109470.0,1.2842993]
[1759065435562,0.05809322,109480.0,109470.0,0.4520993]
[1759065435861,0.05809322,109480.0,109470.0,1.2842993]
[1759065456578,0.05809322,109480.0,109470.0,0.9234993]
[1759065456779,0.05809322,109480.0,109470.0,1.2842993]
[1759065462176,0.03449,109470.0,109460.0,0.4521104]
[1759065462377,0.05680322,109470.0,109460.0,1.2841104]
[1759065462776,0.05680322,109470.0,109460.0,1.2840704]
[1759065463082,0.12896232,109470.0,109460.0,1.2840704]
[1759065464384,0.12896232,109470.0,109460.0,1.2850704]
[1759065464872,0.12896232,109470.0,109460.0,1.2870704]
[1759065466782,0.12896232,109470.0,109460.0,0.4551104]
[1759065466984,0.12896232,109470.0,109460.0,1.2870304]
[1759065467585,0.12893783,109470.0,109460.0,1.2870304]
[1759065471386,0.12893783,109470.0,109460.0,1.2869904]
[1759065473383,0.1502524,109470.0,109460.0,0.4551104]
[1759065473687,0.641559,109470.0,109460.0,0.0943149]
[1759065473886,1.002359,109470.0,109460.0,0.9261549]
[1759065474080,0.98104443,109470.0,109460.0,0.9261549]
[1759065474281,0.98104443,109470.0,109460.0,0.0943149]
[1759065480180,0.98104443,109470.0,109460.0,0.003]
[1759065480384,0.127814,109450.0,109440.0,0.0913277]
[1759065480684,0.15010273,109450.0,109440.0,0.0913277]
[1759065480887,0.55010273,109450.0,109440.0,0.0913277]
[1759065481590,0.55933112,109450.0,109440.0,0.0913277]
[1759065481786,0.55933112,109450.0,109440.0,0.0953277]
[1759065483797,0.55933112,109450.0,109440.0,0.1013277]
[1759065485894,0.15933112,109450.0,109440.0,0.1013277]
[1759065486201,0.92013112,109450.0,109440.0,0.01]
[1759065486499,0.92013112,109450.0,109440.0,0.1013323]
[1759065487099,1.26064712,109450.0,109440.0,0.0953323]
[1759065487298,0.16133112,109450.0,109440.0,0.0953323]
[1759065488499,0.16133112,109450.0,109440.0,0.0913323]
[1759065496091,0.07000712,109450.0,109440.0,0.0913323]
[1759065496496,0.03849,109450.0,109440.0,0.8521323]
[1759065496892,0.03849,109450.0,109440.0,1.6840523]
[1759065497097,0.0157,109450.0,109440.0,1.6840523]
[1759065499807,0.02460619,109450.0,109440.0,1.6840523]
[1759065500308,0.02460619,109450.0,109440.0,1.6933275]
[1759065500607,0.0157,109450.0,109440.0,1.6840523]
[1759065501105,0.03875,109450.0,109440.0,1.6841323]
[1759065501294,0.06110975,109450.0,109440.0,1.6841323]
[1759065501909,0.03875,109450.0,109440.0,1.6841323]
[1759065504106,0.0137,109460.0,109450.0,0.091324]
[1759065504312,0.13002236,109470.0,109460.0,0.0913157]
[1759065504510,0.13002236,109470.0,109460.0,1.2840357]
[1759065505006,0.1086491,109470.0,109460.0,1.2840357]
[1759065508510,0.04503296,109480.0,109470.0,0.0913073]
[1759065508699,0.0357,109480.0,109470.0,0.4521073]
[1759065509101,0.0223639,109480.0,109470.0,0.8521073]
[1759065509308,0.03585,109490.0,109470.0,0.8521073]
[1759065509507,0.0582081,109490.0,109470.0,1.2839873]
[1759065510209,0.06711386,109490.0,109470.0,0.4521073]
[1759065510409,0.06711386,109490.0,109480.0,0.091299]
[1759065510713,0.06711386,109490.0,109480.0,1.283939]
[1759065511505,0.0128,109490.0,109480.0,1.683939]
[1759065511810,0.0128,109490.0,109480.0,1.684419]
[1759065517007,0.0128,109490.0,109480.0,1.684499]
[1759065519010,0.0128,109500.0,109490.0,0.0912906]
[1759065519208,0.03585,109500.0,109490.0,0.4520906]
[1759065519615,0.03585,109500.0,109490.0,1.2880906]
[1759065520711,0.0128,109500.0,109490.0,1.6880906]
[1759065521814,0.0128,109500.0,109490.0,1.2880906]
[1759065522211,0.0128,109500.0,109490.0,0.4520906]
[1759065522416,0.0128,109500.0,109490.0,1.2882906]
[1759065522612,0.0128,109500.0,109490.0,0.4520906]
[1759065522813,0.0128,109500.0,109490.0,1.2885706]
[1759065523218,0.0128,109500.0,109490.0,0.4520906]
[1759065523518,0.11634801,109510.0,109500.0,0.0912815]
[1759065524017,0.10987475,109530.0,109520.0,0.0943649]
[1759065524215,0.07402475,109530.0,109520.0,1.2922049]
[1759065524416,0.03585,109550.0,109540.0,0.0943482]
[1759065524621,0.06717344,109550.0,109540.0,0.0943482]
[1759065524822,0.51921334,109550.0,109540.0,0.0943482]
[1759065525032,0.91921334,109550.0,109540.0,0.0031]
[1759065526722,0.0912573,109530.0,109520.0,0.0912629]
[1759065527023,0.55918742,109530.0,109520.0,0.9318829]
[1759065527823,0.19838742,109530.0,109520.0,0.0943629]
[1759065528024,0.59838742,109530.0,109520.0,0.0943629]
[1759065529521,0.1267356,109520.0,109510.0,1.2926497]
[1759065529715,0.1267356,109520.0,109510.0,0.4551697]
[1759065529917,0.1267356,109520.0,109510.0,0.9319297]
[1759065530226,0.126744,109510.0,109500.0,0.455177]
[1759065530420,0.126744,109510.0,109500.0,1.292857]
[1759065533226,0.14912196,109510.0,109500.0,1.292857]
[1759065535126,0.126744,109510.0,109500.0,1.292857]
[1759065535329,0.05785781,109510.0,109500.0,1.292857]
[1759065540230,1e-08,109510.0,109500.0,1.692857]
[1759065540428,0.01391,109520.0,109510.0,0.091274]
[1759065540734,0.03547,109520.0,109510.0,1.292494]
[1759065542631,0.01391,109520.0,109510.0,1.292494]
[1759065543638,0.01391,109520.0,109510.0,0.455174]
[1759065543937,0.03547,109520.0,109510.0,1.292294]
[1759065546837,0.03547,109520.0,109510.0,0.455174]
[1759065547140,0.03547,109520.0,109510.0,1.292094]
[1759065548636,0.03547,109520.0,109510.0,1.292374]
[1759065548836,0.03547,109520.0,109510.0,1.292414]
[1759065549036,0.8875348,109520.0,109510.0,0.0943732]
[1759065549239,0.8875348,109520.0,109510.0,0.9316132]
[1759065549443,0.8875348,109520.0,109510.0,0.0943732]
[1759065549634,0.8875348,109520.0,109510.0,0.0912732]
[1759065549943,0.8875348,109520.0,109510.0,0.0943732]
[1759065552241,0.90985932,109520.0,109510.0,0.0943732]
[1759065553142,0.90985932,109520.0,109510.0,0.0912732]
[1759065554744,0.127088,109510.0,109500.0,0.0943741]
[1759065555041,0.51021252,109510.0,109500.0,0.0943741]
[1759065555735,0.41893452,109510.0,109500.0,0.0943741]
[1759065556633,0.51020772,109510.0,109500.0,0.0943741]
[1759065561141,0.41893452,109510.0,109500.0,0.0943741]
[1759065561347,0.05813452,109510.0,109500.0,0.0943741]
[1759065564745,0.14940772,109510.0,109500.0,0.0943741]
[1759065564946,0.05813452,109510.0,109500.0,0.0943741]
[1759065565542,0.14940772,109510.0,109500.0,0.0943741]
[1759065566747,0.05813452,109510.0,109500.0,0.0943741]
[1759065567847,0.14940772,109510.0,109500.0,0.0943741]
[1759065573956,0.51020772,109510.0,109500.0,0.0943741]
[1759065575758,0.41893452,109510.0,109500.0,0.0943741]
[1759065576455,0.51020852,109510.0,109500.0,0.0943741]
[1759065582057,0.41893452,109510.0,109500.0,0.0943741]
[1759065582462,0.51020842,109510.0,109500.0,0.0943741]
[1759065588557,0.05813452,109510.0,109500.0,0.0943741]
[1759065588763,0.02232452,109510.0,109500.0,0.8551741]
[1759065588955,0.03588,109520.0,109510.0,0.094374]
[1759065589155,0.05826505,109520.0,109510.0,0.929694]
[1759065592266,0.05826505,109520.0,109510.0,1.290494]
[1759065593465,0.10530651,109530.0,109520.0,0.0943656]
[1759065593770,0.15010021,109530.0,109520.0,1.2906856]
[1759065594368,0.12887382,109530.0,109520.0,1.2906856]
[1759065595675,0.12887382,109530.0,109520.0,1.2906056]
[1759065596176,0.09363382,109530.0,109520.0,1.2906056]
[1759065596371,0.07128012,109530.0,109520.0,1.2906056]
[1759065596578,0.01262,109540.0,109520.0,1.2906056]
[1759065596875,0.05692208,109540.0,109530.0,0.0943565]
[1759065600678,0.50897028,109540.0,109530.0,0.0943565]
[1759065600882,0.41772208,109540.0,109530.0,0.0943565]
[1759065601085,0.49168908,109540.0,109530.0,0.0943565]
[1759065601288,0.58293828,109540.0,109530.0,0.0943565]
[1759065602081,0.58293828,109540.0,109530.0,0.0912565]
[1759065602282,0.58293828,109540.0,109530.0,0.0943565]
[1759065602485,0.98293828,109540.0,109530.0,0.0912565]
[1759065602887,0.98293828,109540.0,109530.0,0.0943565]
[1759065605785,0.89168908,109540.0,109530.0,0.0943565]
[1759065606182,0.98293908,109540.0,109530.0,0.0943565]
[1759065606381,0.03524,109520.0,109510.0,0.728534]
[1759065606890,0.03524,109520.0,109510.0,0.094374]
[1759065607090,0.03524,109520.0,109510.0,0.929614]
[1759065610390,0.1265063,109520.0,109510.0,0.094374]
[1759065610595,0.4873063,109520.0,109510.0,0.0943746]
[1759065610797,0.50959736,109520.0,109510.0,0.0943746]
[1759065611698,0.90959736,109520.0,109510.0,0.0943746]
[1759065611897,0.90959736,109520.0,109510.0,0.0912746]
[1759065614497,0.90959736,109520.0,109510.0,0.0943746]
[1759065616499,0.81833106,109520.0,109510.0,0.0943746]
[1759065617701,0.90959736,109520.0,109510.0,0.0943746]
[1759065617901,0.41833106,109520.0,109510.0,0.0943746]
[1759065618202,0.05753106,109520.0,109510.0,0.0943746]
[1759065623000,0.03626,109530.0,109520.0,0.0943663]
[1759065623203,0.05856246,109530.0,109520.0,0.0943663]
[1759065624096,0.05856246,109530.0,109520.0,0.9294863]
[1759065624298,0.109577,109540.0,109530.0,0.094358]
[1759065624503,0.13187681,109540.0,109530.0,0.094358]
[1759065624702,0.13187681,109540.0,109530.0,0.455158]
[1759065624903,0.109577,109540.0,109530.0,0.455158]
[1759065625904,0.109577,109540.0,109530.0,1.290158]
[1759065627808,0.109577,109540.0,109530.0,0.455158]
[1759065628116,0.109577,109540.0,109530.0,0.929198]
[1759065629314,0.109577,109540.0,109530.0,0.929278]
[1759065629512,0.109577,109540.0,109530.0,0.094358]
[1759065629715,0.109577,109540.0,109530.0,0.929198]
[1759065630414,0.109577,109540.0,109530.0,0.929158]
[1759065630914,0.109577,109540.0,109530.0,0.094358]
[1759065631114,0.109577,109540.0,109530.0,0.929118]
[1759065631318,0.109577,109540.0,109530.0,0.929038]
[1759065632013,0.13185677,109540.0,109530.0,0.928998]
[1759065634012,0.13185677,109540.0,109530.0,0.094358]
[1759065637419,0.13185029,109540.0,109530.0,0.094358]
[1759065637922,0.22309989,109540.0,109530.0,0.094358]
[1759065638122,0.13185029,109540.0,109530.0,0.094358]
[1759065638519,0.22309989,109540.0,109530.0,0.094358]
[1759065638825,0.13185029,109540.0,109530.0,0.094358]
[1759065639015,0.13185029,109540.0,109530.0,0.455158]
[1759065640924,0.13185029,109540.0,109530.0,0.094358]
[1759065643626,0.13185029,109540.0,109530.0,0.455158]
[1759065644019,0.13185029,109540.0,109530.0,0.094358]
[1759065645013,0.13185029,109540.0,109530.0,0.928758]
[1759065645219,0.49260632,109540.0,109530.0,0.928758]
[1759065645421,0.13180632,109540.0,109530.0,0.928758]
[1759065650837,0.49260632,109540.0,109530.0,0.928758]
[1759065651342,0.13180632,109540.0,109530.0,0.928758]
[1759065652041,0.13180632,109540.0,109530.0,1.289558]
[1759065652241,0.13180632,109540.0,109530.0,0.928758]
[1759065655343,0.58385592,109540.0,109530.0,0.094358]
[1759065655744,0.58385592,109540.0,109530.0,0.929238]
[1759065656043,0.58385592,109540.0,109530.0,0.094358]
[1759065656445,0.58385592,109540.0,109530.0,0.929398]
[1759065658648,0.58385592,109540.0,109530.0,0.094358]
[1759065659244,0.58385592,109540.0,109530.0,0.929398]
[1759065659649,0.58385592,109540.0,109530.0,0.094358]
[1759065659844,0.58385592,109540.0,109530.0,0.929598]
[1759065669749,0.58385592,109540.0,109530.0,0.0031]
[1759065669954,0.0358,109520.0,109510.0,0.4551683]
[1759065670150,0.05802932,109520.0,109510.0,1.2895283]
[1759065670358,0.02222932,109520.0,109510.0,1.2895283]
[1759065670555,0.447387,109540.0,109520.0,0.1856322]
[1759065670746,0.49133937,109540.0,109530.0,0.0943578]
[1759065670950,0.58258887,109540.0,109530.0,0.9300778]
[1759065671354,0.13053937,109540.0,109530.0,0.9300778]
[1759065673258,0.49133937,109540.0,109530.0,0.9300778]
[1759065673557,0.13053937,109540.0,109530.0,0.9300778]
[1759065685172,0.22178867,109540.0,109530.0,0.9300778]
[1759065686472,0.22178867,109540.0,109530.0,0.0943578]
[1759065686861,0.22178867,109540.0,109530.0,0.9307978]
[1759065687272,0.22178867,109540.0,109530.0,0.0943578]
[1759065687671,0.22178867,109540.0,109530.0,0.9319978]
[1759065689776,0.22178867,109540.0,109530.0,0.0943578]
[1759065689976,0.22178867,109540.0,109530.0,0.9320778]
[1759065690474,0.58258867,109540.0,109530.0,0.0031]
[1759065690672,0.98258867,109540.0,109530.0,0.0031]
[1759065691377,0.98258867,109540.0,109530.0,0.0943577]
[1759065691574,0.1265577,109530.0,109520.0,0.0943586]
[1759065691768,0.50964007,109530.0,109520.0,0.0943586]
[1759065691968,0.50964007,109530.0,109520.0,0.9322386]
[1759065692374,0.50964007,109530.0,109520.0,0.0943586]
[1759065692574,0.50964007,109530.0,109520.0,0.9323186]
[1759065695481,0.50964007,109530.0,109520.0,0.9323986]
[1759065696676,0.05758237,109530.0,109520.0,0.9323986]
[1759065696880,0.05757087,109530.0,109520.0,0.9323986]
[1759065697074,0.14882857,109530.0,109520.0,0.9323986]
[1759065697280,0.50962857,109530.0,109520.0,0.9323986]
[1759065697681,0.53101542,109530.0,109520.0,0.0031]
[1759065697980,0.126566,109520.0,109510.0,0.8811099]
[1759065698289,0.50963687,109520.0,109510.0,0.8811099]
[1759065698484,0.50963687,109520.0,109510.0,0.0912699]
[1759065698678,0.50963687,109520.0,109510.0,0.0943699]
[1759065699478,0.50963687,109520.0,109510.0,0.0963699]
[1759065703982,0.14883687,109520.0,109510.0,0.0963699]
[1759065704285,0.50963687,109520.0,109510.0,0.0963699]
[1759065705588,0.14883687,109520.0,109510.0,0.0963699]
[1759065708389,0.50963687,109520.0,109510.0,0.0963699]
[1759065710488,0.41837087,109520.0,109510.0,0.0963699]
[1759065710695,0.03552087,109520.0,109510.0,0.8571699]
[1759065710882,0.03523,109520.0,109510.0,0.8571699]
[1759065711082,0.03523,109520.0,109510.0,1.2942899]
[1759065711284,0.37405,109530.0,109510.0,1.6942899]
[1759065711490,0.41830415,109530.0,109520.0,0.094366]
[1759065713392,0.05750415,109530.0,109520.0,0.455166]
[1759065714685,0.05750415,109530.0,109520.0,0.931526]
[1759065714890,0.05750415,109530.0,109520.0,0.931366]
[1759065715493,0.05750415,109530.0,109520.0,1.292166]
[1759065716493,0.05750415,109530.0,109520.0,0.931366]
[1759065717585,0.05750415,109530.0,109520.0,1.292166]
[1759065719796,0.05750415,109530.0,109520.0,0.931366]
[1759065720003,0.05750415,109530.0,109520.0,1.292166]
[1759065720203,0.05750415,109530.0,109520.0,0.931366]
[1759065720999,0.05750415,109530.0,109520.0,0.094366]
[1759065721198,0.05750415,109530.0,109520.0,0.930846]
[1759065721896,0.05750415,109530.0,109520.0,0.930606]
[1759065723005,0.05750415,109530.0,109520.0,1.291406]
[1759065723609,0.05750415,109530.0,109520.0,0.930606]
[1759065724701,0.05750415,109530.0,109520.0,1.291406]
[1759065724906,0.05750415,109530.0,109520.0,0.930606]
[1759065725103,0.05750415,109530.0,109520.0,1.291406]
[1759065725310,0.05750415,109530.0,109520.0,0.455166]
[1759065725506,0.05750415,109530.0,109520.0,0.930446]
[1759065725710,0.05750415,109530.0,109520.0,1.291246]
[1759065728712,0.05750415,109530.0,109520.0,1.290846]
[1759065729009,0.05750415,109530.0,109520.0,0.455166]
[1759065729215,0.05750415,109530.0,109520.0,1.290686]
[1759065730508,0.05750415,109530.0,109520.0,1.291046]
[1759065731509,0.05750415,109530.0,109520.0,0.455166]
[1759065731709,0.05750415,109530.0,109520.0,1.290886]
[1759065733117,0.05750415,109530.0,109520.0,1.290606]
[1759065733709,0.05750415,109530.0,109520.0,1.290566]
[1759065735918,0.05750415,109530.0,109520.0,0.455166]
[1759065736123,0.05750415,109530.0,109520.0,1.291206]
[1759065738521,0.02227415,109530.0,109520.0,1.291206]
[1759065738723,0.02227415,109530.0,109520.0,1.691206]
[1759065740422,0.02227415,109530.0,109520.0,1.693206]
[1759065741222,0.02227415,109530.0,109520.0,1.691206]
[1759065742215,0.107947,109540.0,109530.0,0.0943557]
[1759065742426,0.13026779,109540.0,109530.0,0.0943557]
[1759065745831,0.13026779,109540.0,109530.0,0.4551557]
[1759065746330,0.13026779,109540.0,109530.0,0.8551557]
[1759065746331,0.09628779,109540.0,109530.0,0.8551557]
[1759065746830,0.02232079,109540.0,109530.0,0.8551557]
[1759065747125,0.03427,109560.0,109550.0,0.0031]
[1759065747429,0.05652698,109560.0,109550.0,0.929939]
[1759065748329,0.06585323,109560.0,109550.0,0.929939]
[1759065748930,0.13816468,109560.0,109550.0,0.930019]
[1759065749127,0.05652698,109560.0,109550.0,0.930019]
[1759065750131,0.05652698,109560.0,109550.0,0.094339]
[1759065750333,0.05652698,109560.0,109550.0,0.929939]
[1759065753636,0.06563322,109560.0,109550.0,0.929939]
[1759065754133,0.13794467,109560.0,109550.0,0.929939]
[1759065760140,0.22917727,109560.0,109550.0,0.929939]
[1759065764044,0.22917727,109560.0,109550.0,0.094339]
[1759065764246,0.58997727,109560.0,109550.0,0.928939]
[1759065764447,0.1264792,109540.0,109530.0,0.0943557]
[1759065764745,0.14873618,109540.0,109530.0,0.9293557]
[1759065765740,0.14873618,109540.0,109530.0,0.0943557]
[1759065765941,0.14873618,109540.0,109530.0,0.9293157]
[1759065769848,0.14873618,109540.0,109530.0,0.9289157]
[1759065771047,0.14873618,109540.0,109530.0,0.0943557]
[1759065771247,0.14873618,109540.0,109530.0,0.9288357]
[1759065771550,0.14873618,109540.0,109530.0,0.0943557]
[1759065771751,0.14873618,109540.0,109530.0,0.9287157]
[1759065773355,0.50953618,109540.0,109530.0,0.0943557]
[1759065773657,0.90953618,109540.0,109530.0,0.9285157]
[1759065775353,0.90953618,109540.0,109530.0,0.0912557]
[1759065776251,0.90953618,109540.0,109530.0,0.0943557]
[1759065777856,0.90953618,109540.0,109530.0,0.0912557]
[1759065778055,0.90953618,109540.0,109530.0,0.0943557]
[1759065781654,0.50953618,109540.0,109530.0,0.0943557]
[1759065781961,0.05748698,109540.0,109530.0,0.0943557]
[1759065782762,0.41828698,109540.0,109530.0,0.0943557]
[1759065782965,0.05748698,109540.0,109530.0,0.0943557]
[1759065783263,0.41828698,109540.0,109530.0,0.0943557]
[1759065783463,0.05748698,109540.0,109530.0,0.0943557]
[1759065784665,0.41828698,109540.0,109530.0,0.0943557]
[1759065784863,0.05748698,109540.0,109530.0,0.0943557]
[1759065786763,0.41828698,109540.0,109530.0,0.0943557]
[1759065786960,0.05748698,109540.0,109530.0,0.0943557]
[1759065787266,0.14873618,109540.0,109530.0,0.0943557]
[1759065787464,0.50953618,109540.0,109530.0,0.0943557]
[1759065792168,0.41828698,109540.0,109530.0,0.0943557]
[1759065808190,0.05748698,109540.0,109530.0,0.0943557]
[1759065811587,0.41828698,109540.0,109530.0,0.0943557]
[1759065812791,0.50953618,109540.0,109530.0,0.0943557]
[1759065828994,0.50953618,109540.0,109530.0,0.0912557]
[1759065835497,0.14873618,109540.0,109530.0,0.0912557]
[1759065835705,0.50953618,109540.0,109530.0,0.0912557]
[1759065840506,0.90953618,109540.0,109530.0,0.0912557]
[1759065845714,1.74649618,109540.0,109530.0,0.0943557]
[1759065846713,1.74649618,109540.0,109530.0,0.0912557]
[1759065847012,1.38569618,109540.0,109530.0,0.0912557]